fUST/lending_fUST_20240906
["ID","MTS","AMOUNT","RATE_DAILY","PERIOD"]
[337366800,1725631875826,-500.0,0.00020273,2]
[337366801,1725631875835,-848.57,0.00020273,2]
[337366802,1725631875845,-250.22443208,0.00020273,2]
[337366803,1725631875854,-500.0,0.00020273,2]
[337366804,1725631875863,-500.0,0.00020273,2]
[337366805,1725631875872,-500.0,0.00020273,2]
[337366806,1725631875881,-500.0,0.00020273,2]
[337366807,1725631875899,-500.0,0.00020273,2]
[337366808,1725631875919,-500.0,0.00020273,2]
[337366809,1725631875936,-500.0,0.00020273,2]
[337366810,1725631875957,-500.0,0.00020273,2]
[337366811,1725631875975,-500.0,0.00020273,2]
[337366812,1725631875993,-500.0,0.00020273,2]
[337366813,1725631876012,-500.0,0.00020273,2]
[337366814,1725631876026,-500.0,0.00020273,2]
[337366815,1725631876043,-500.0,0.00020273,2]
[337366816,1725631876064,-564.9019037,0.00020273,2]
[337366817,1725631876085,-500.0,0.00020273,2]
[337366818,1725631876096,-676.68,0.00020273,2]
[337366819,1725631876113,-500.0,0.00020273,2]
[337366820,1725631876130,-500.0,0.00020273,2]
[337366821,1725631876144,-500.0,0.00020273,2]
[337366822,1725631876160,-500.0,0.00020273,2]
[337366823,1725631876175,-636.07,0.00020273,2]
[337366824,1725631876191,-500.0,0.00020273,2]
[337366825,1725631876206,-500.0,0.00020273,2]
[337366826,1725631876220,-500.0,0.00020273,2]
[337366827,1725631876235,-500.0,0.00020273,2]
[337366828,1725631876249,-500.0,0.00020273,2]
[337366829,1725631876264,-500.0,0.00020273,2]
[337366830,1725631876279,-500.0,0.00020273,2]
[337366831,1725631876293,-500.0,0.00020273,2]
[337366832,1725631876312,-500.0,0.00020273,2]
[337366833,1725631876327,-500.0,0.00020273,2]
[337366834,1725631876343,-718.23,0.00020273,2]
[337366835,1725631876358,-500.0,0.00020273,2]
[337366836,1725631876372,-500.0,0.00020273,2]
[337366837,1725631876387,-500.0,0.00020273,2]
[337366838,1725631876402,-500.0,0.00020273,2]
[337366839,1725631876417,-500.0,0.00020273,2]
[337366840,1725631876431,-500.0,0.00020273,2]
[337366841,1725631876446,-294.67696454,0.00020273,2]
[337366842,1725631876461,-1651.41,0.00020273,2]
[337366843,1725631876477,-500.0,0.00020273,2]
[337366844,1725631876492,-500.0,0.00020273,2]
[337366845,1725631876507,-500.0,0.00020273,2]
[337366846,1725631876520,-500.0,0.00020273,2]
[337366847,1725631876540,-1115.64,0.00020273,2]
[337366848,1725631876555,-1610.16,0.00020273,2]
[337366849,1725631876570,-500.0,0.00020273,2]
[337366850,1725631876584,-555.07,0.00020273,2]
[337366851,1725631876599,-500.0,0.00020273,2]
[337366852,1725631876617,-500.0,0.00020273,2]
[337366853,1725631876631,-522.21,0.00020273,2]
[337366854,1725631876646,-500.0,0.00020273,2]
[337366855,1725631876661,-512.17408081,0.00020273,2]
[337366856,1725631876677,-500.0,0.00020273,2]
[337366857,1725631876692,-2093.39,0.00020273,2]
[337366858,1725631876707,-500.0,0.00020273,2]
[337366859,1725631876723,-648.33,0.00020273,2]
[337366860,1725631876739,-500.0,0.00020273,2]
[337366861,1725631876755,-500.0,0.00020273,2]
[337366862,1725631876770,-500.0,0.00020273,2]
[337366863,1725631876784,-2191.44,0.00020273,2]
[337366864,1725631876800,-500.0,0.00020273,2]
[337366865,1725631876814,-500.0,0.00020273,2]
[337366866,1725631876830,-500.0,0.00020273,2]
[337366867,1725631876844,-459.85363613,0.00020273,2]
[337366868,1725631876858,-500.0,0.00020273,2]
[337366869,1725631876872,-500.0,0.00020273,2]
[337366870,1725631876886,-3029.51,0.00020273,2]
[337366871,1725631876901,-516.97798722,0.00020273,2]
[337366872,1725631876918,-500.0,0.00020273,2]
[337366873,1725631876933,-500.0,0.00020273,2]
[337366874,1725631876948,-500.0,0.00020273,2]
[337366875,1725631876963,-500.0,0.00020273,2]
[337366876,1725631876978,-500.0,0.00020273,2]
[337366877,1725631876992,-536.82259292,0.00020273,2]
[337366878,1725631877007,-500.0,0.00020273,2]
[337366879,1725631877022,-500.0,0.00020273,2]
[337366880,1725631877039,-500.0,0.00020273,2]
[337366881,1725631877057,-500.0,0.00020273,2]
[337366882,1725631877072,-502.61495316,0.00020273,2]
[337366883,1725631877086,-500.0,0.00020273,2]
[337366884,1725631877101,-1309.28,0.00020273,2]
[337366885,1725631877115,-500.0,0.00020273,2]
[337366886,1725631877130,-500.0,0.00020273,2]
[337366887,1725631877144,-2317.55,0.00020273,2]
[337366888,1725631877154,-500.0,0.00020273,2]
[337366889,1725631877164,-500.0,0.00020273,2]
[337366890,1725631877174,-500.0,0.00020273,2]
[337366891,1725631877184,-953.81,0.00020273,2]
[337366892,1725631877193,-227.89663243,0.00020273,2]
[337366893,1725631877203,-500.0,0.00020273,2]
[337366894,1725631877213,-500.0,0.00020273,2]
[337366895,1725631877222,-2214.38,0.00020273,2]
[337366896,1725631877232,-200.0,0.00020273,2]
[337366897,1725631877243,-500.0,0.00020273,2]
[337366898,1725631877254,-500.0,0.00020273,2]
[337366899,1725631877264,-500.0,0.00020273,2]
[337366900,1725631877274,-2383.39,0.00020273,2]
[337366901,1725631877283,-500.0,0.00020273,2]
[337366902,1725631877293,-500.0,0.00020273,2]
[337366903,1725631877563,-1150.25,0.00020273,2]
[337366904,1725631877584,-500.0,0.00020273,2]
[337366905,1725631877612,-1383.67,0.00020273,2]
[337366906,1725631877625,-574.52,0.00020273,2]
[337366907,1725631877634,-647.24442037,0.00020273,2]
[337366908,1725631877643,-500.0,0.00020273,2]
[337366909,1725631877652,-1183.94,0.00020273,2]
[337366910,1725631877662,-1055.24,0.00020273,2]
[337366911,1725631877671,-212.86299536,0.00020273,2]
[337366912,1725631877680,-953.31,0.00020273,2]
[337366913,1725631877690,-500.0,0.00020273,2]
[337366914,1725631877699,-500.0,0.00020273,2]
[337366915,1725631877708,-500.0,0.00020273,2]
[337366916,1725631877718,-500.0,0.00020273,2]
[337366917,1725631877730,-1004.18,0.00020273,2]
[337366918,1725631877740,-500.0,0.00020273,2]
[337366919,1725631877749,-500.0,0.00020273,2]
[337366920,1725631877759,-500.0,0.00020273,2]
[337366921,1725631877768,-500.0,0.00020273,2]
[337366922,1725631877778,-500.0,0.00020273,2]
[337366923,1725631877787,-500.0,0.00020273,2]
[337366924,1725631877797,-500.0,0.00020273,2]
[337366925,1725631877813,-500.0,0.00020273,2]
[337366926,1725631877829,-609.29,0.00020273,2]
[337366927,1725631877838,-1073.16,0.00020273,2]
[337366928,1725631877847,-500.0,0.00020273,2]
[337366929,1725631877857,-500.0,0.00020273,2]
[337366930,1725631877867,-500.0,0.00020273,2]
[337366931,1725631877876,-500.0,0.00020273,2]
[337366932,1725631877886,-500.0,0.00020273,2]
[337366933,1725631877895,-500.0,0.00020273,2]
[337366934,1725631877904,-500.0,0.00020273,2]
[337366935,1725631877914,-984.52,0.00020273,2]
[337366936,1725631877923,-500.0,0.00020273,2]
[337366937,1725631877933,-500.0,0.00020273,2]
[337366938,1725631877942,-500.0,0.00020273,2]
[337366939,1725631877952,-802.18,0.00020273,2]
[337366940,1725631877961,-500.0,0.00020273,2]
[337366941,1725631877971,-502.79,0.00020273,2]
[337366942,1725631877981,-500.0,0.00020273,2]
[337366943,1725631877991,-500.0,0.00020273,2]
[337366944,1725631878002,-672.02,0.00020273,2]
[337366945,1725631878012,-1736.67,0.00020273,2]
[337366946,1725631878022,-517.03440278,0.00020273,2]
[337366947,1725631878031,-2241.58,0.00020273,2]
[337366948,1725631878041,-500.0,0.00020273,2]
[337366949,1725631878053,-500.0,0.00020273,2]
[337366950,1725631878066,-500.0,0.00020273,2]
[337366951,1725631878075,-500.0,0.00020273,2]
[337366952,1725631878084,-500.0,0.00020273,2]
[337366953,1725631878094,-709.85,0.00020273,2]
[337366954,1725631878104,-929.24,0.00020273,2]
[337366955,1725631878114,-276.19782634,0.00020273,2]
[337366956,1725631878124,-789.68,0.00020273,2]
[337366957,1725631878134,-564.3,0.00020273,2]
[337366958,1725631878143,-500.0,0.00020273,2]
[337366959,1725631878153,-500.0,0.00020273,2]
[337366960,1725631878163,-2150.56,0.00020273,2]
[337366961,1725631878172,-500.0,0.00020273,2]
[337366962,1725631878182,-500.0,0.00020273,2]
[337366963,1725631878191,-500.0,0.00020273,2]
[337366964,1725631878201,-774.77,0.00020273,2]
[337366965,1725631878210,-500.0,0.00020273,2]
[337366966,1725631878220,-500.0,0.00020273,2]
[337366967,1725631878229,-500.0,0.00020273,2]
[337366968,1725631878239,-500.0,0.00020273,2]
[337366969,1725631878249,-1717.67,0.00020273,2]
[337366970,1725631878259,-537.94,0.00020273,2]
[337366971,1725631878269,-357.49324299,0.00020273,2]
[337366972,1725631878278,-500.0,0.00020273,2]
[337366973,1725631878287,-500.0,0.00020273,2]
[337366974,1725631878298,-500.0,0.00020273,2]
[337366975,1725631878310,-501.02,0.00020273,2]
[337366976,1725631878319,-500.0,0.00020273,2]
[337366977,1725631878328,-500.0,0.00020273,2]
[337366978,1725631878338,-500.0,0.00020273,2]
[337366979,1725631878347,-500.0,0.00020273,2]
[337366980,1725631878358,-500.0,0.00020273,2]
[337366981,1725631878368,-500.0,0.00020273,2]
[337366982,1725631878377,-1438.2,0.00020273,2]
[337366983,1725631878387,-282.08,0.00020273,2]
[337366984,1725631878397,-500.0,0.00020273,2]
[337366985,1725631878406,-510.48562214,0.00020273,2]
[337366986,1725631878416,-500.0,0.00020273,2]
[337366987,1725631878427,-500.0,0.00020273,2]
[337366988,1725631878437,-564.71,0.00020273,2]
[337366989,1725631878447,-500.0,0.00020273,2]
[337366990,1725631878456,-500.0,0.00020273,2]
[337366991,1725631878466,-1150.94,0.00020273,2]
[337366992,1725631878475,-500.0,0.00020273,2]
[337366993,1725631878485,-500.0,0.00020273,2]
[337366994,1725631878495,-500.0,0.00020273,2]
[337366995,1725631878505,-494.36410749,0.00020273,2]
[337366996,1725631878515,-500.0,0.00020273,2]
[337366997,1725631878526,-500.0,0.00020273,2]
[337366998,1725631878538,-500.0,0.00020273,2]
[337366999,1725631878549,-500.0,0.00020273,2]
[337367000,1725631878561,-1637.9,0.00020273,2]
[337367001,1725631878572,-3128.92,0.00020273,2]
[337367002,1725631878582,-500.0,0.00020273,2]
[337367003,1725631878592,-645.59,0.00020273,2]
[337367004,1725631878601,-500.0,0.00020273,2]
[337367005,1725631878612,-500.0,0.00020273,2]
[337367006,1725631878622,-500.0,0.00020273,2]
[337367007,1725631878632,-500.0,0.00020273,2]
[337367008,1725631878642,-549.21,0.00020273,2]
[337367009,1725631878653,-500.0,0.00020273,2]
[337367010,1725631878663,-1354.63,0.00020273,2]
[337367011,1725631878673,-500.0,0.00020273,2]
[337367012,1725631878683,-588.01,0.00020273,2]
[337367013,1725631878693,-500.0,0.00020273,2]
[337367014,1725631878702,-500.0,0.00020273,2]
[337367015,1725631878713,-500.0,0.00020273,2]
[337367016,1725631878724,-500.0,0.00020273,2]
[337367017,1725631878734,-500.0,0.00020273,2]
[337367018,1725631878744,-500.0,0.00020273,2]
[337367019,1725631878755,-500.0,0.00020273,2]
[337367020,1725631878765,-696.17,0.00020273,2]
[337367021,1725631878776,-500.0,0.00020273,2]
[337367022,1725631878786,-500.0,0.00020273,2]
[337367023,1725631878795,-500.0,0.00020273,2]
[337367024,1725631878807,-2435.34,0.00020273,2]
[337367025,1725631878816,-500.0,0.00020273,2]
[337367026,1725631878826,-739.29,0.00020273,2]
[337367027,1725631878835,-500.0,0.00020273,2]
[337367028,1725631878846,-500.0,0.00020273,2]
[337367029,1725631878856,-712.06,0.00020273,2]
[337367030,1725631878866,-500.0,0.00020273,2]
[337367031,1725631878875,-323.0615268,0.00020273,2]
[337367032,1725631878885,-1437.93,0.00020273,2]
[337367033,1725631878895,-500.0,0.00020273,2]
[337367034,1725631878904,-500.0,0.00020273,2]
[337367035,1725631878914,-1254.48,0.00020273,2]
[337367036,1725631878922,-551.44085889,0.00020273,2]
[337367037,1725631878932,-500.0,0.00020273,2]
[337367038,1725631878941,-500.0,0.00020273,2]
[337367039,1725631878952,-500.0,0.00020273,2]
[337367040,1725631878962,-547.87,0.00020273,2]
[337367041,1725631878972,-500.0,0.00020273,2]
[337367042,1725631878982,-526.91983889,0.00020273,2]
[337367043,1725631878991,-1992.59,0.00020273,2]
[337367044,1725631879001,-579.46,0.00020273,2]
[337367045,1725631879010,-2436.65,0.00020273,2]
[337367046,1725631879020,-500.0,0.00020273,2]
[337367047,1725631879030,-500.0,0.00020273,2]
[337367048,1725631879039,-854.61,0.00020273,2]
[337367049,1725631879048,-500.0,0.00020273,2]
[337367050,1725631879061,-1053.85,0.00020273,2]
[337367051,1725631879070,-500.0,0.00020273,2]
[337367052,1725631879080,-500.0,0.00020273,2]
[337367053,1725631879089,-619.13,0.00020273,2]
[337367054,1725631879099,-500.0,0.00020273,2]
[337367055,1725631879108,-500.0,0.00020273,2]
[337367056,1725631879118,-2391.77,0.00020273,2]
[337367057,1725631879128,-1773.27,0.00020273,2]
[337367058,1725631879138,-500.0,0.00020273,2]
[337367059,1725631879147,-1617.1,0.00020273,2]
[337367060,1725631879157,-985.06,0.00020273,2]
[337367061,1725631879167,-1012.85,0.00020273,2]
[337367062,1725631879176,-500.0,0.00020273,2]
[337367063,1725631879186,-1083.74,0.00020273,2]
[337367064,1725631879196,-500.0,0.00020273,2]
[337367065,1725631879205,-508.13023983,0.00020273,2]
[337367066,1725631879215,-500.0,0.00020273,2]
[337367067,1725631879224,-500.0,0.00020273,2]
[337367068,1725631879233,-993.62,0.00020273,2]
[337367069,1725631879243,-500.0,0.00020273,2]
[337367070,1725631879252,-500.0,0.00020273,2]
[337367071,1725631879262,-979.52,0.00020273,2]
[337367072,1725631879272,-500.0,0.00020273,2]
[337367073,1725631879282,-1448.57,0.00020273,2]
[337367074,1725631879292,-500.0,0.00020273,2]
[337367075,1725631879301,-500.0,0.00020273,2]
[337367076,1725631879313,-3583.08,0.00020273,2]
[337367077,1725631879324,-2065.07,0.00020273,2]
[337367078,1725631879333,-500.0,0.00020273,2]
[337367079,1725631879344,-500.0,0.00020273,2]
[337367080,1725631879354,-500.0,0.00020273,2]
[337367081,1725631879364,-500.0,0.00020273,2]
[337367082,1725631879373,-587.47283237,0.00020273,2]
[337367083,1725631879383,-500.0,0.00020273,2]
[337367084,1725631879393,-765.11,0.00020273,2]
[337367085,1725631879403,-500.0,0.00020273,2]
[337367086,1725631879413,-2187.02,0.00020273,2]
[337367087,1725631879424,-548.62,0.00020273,2]
[337367088,1725631879435,-500.0,0.00020273,2]
[337367089,1725631879444,-600.2,0.00020273,2]
[337367090,1725631879454,-915.11,0.00020273,2]
[337367091,1725631879464,-526.84,0.00020273,2]
[337367092,1725631879474,-583.77,0.00020273,2]
[337367093,1725631879483,-500.0,0.00020273,2]
[337367094,1725631879494,-500.0,0.00020273,2]
[337367095,1725631879504,-500.0,0.00020273,2]
[337367096,1725631879514,-2820.38,0.00020273,2]
[337367097,1725631879525,-3216.65,0.00020273,2]
[337367098,1725631879536,-500.0,0.00020273,2]
[337367099,1725631879545,-3068.16,0.00020273,2]
[337367100,1725631879558,-500.0,0.00020273,2]
[337367101,1725631879569,-316.32485546,0.00020273,2]
[337367102,1725631879578,-500.0,0.00020273,2]
[337367103,1725631879588,-500.0,0.00020273,2]
[337367104,1725631879599,-500.0,0.00020273,2]
[337367105,1725631879609,-500.0,0.00020273,2]
[337367106,1725631879619,-2164.36,0.00020273,2]
[337367107,1725631879629,-500.0,0.00020273,2]
[337367108,1725631879639,-500.56075796,0.00020273,2]
[337367109,1725631879649,-585.28,0.00020273,2]
[337367110,1725631879659,-500.0,0.00020273,2]
[337367111,1725631879668,-500.0,0.00020273,2]
[337367112,1725631879677,-2677.65,0.00020273,2]
[337367113,1725631879687,-500.0,0.00020273,2]
[337367114,1725631879697,-2209.05,0.00020273,2]
[337367115,1725631879707,-500.38,0.00020273,2]
[337367116,1725631879717,-500.0,0.00020273,2]
[337367117,1725631879727,-2074.26,0.00020273,2]
[337367118,1725631879737,-217.52564555,0.00020273,2]
[337367119,1725631879747,-507.14990325,0.00020273,2]
[337367120,1725631879757,-500.0,0.00020273,2]
[337367121,1725631879767,-500.0,0.00020273,2]
[337367122,1725631879776,-3954.89,0.00020273,2]
[337367123,1725631879786,-500.0,0.00020273,2]
[337367124,1725631879795,-1651.0,0.00020273,2]
[337367125,1725631879807,-116314.01,0.00020273,2]
[337367126,1725631879817,-500.0,0.00020273,2]
[337367127,1725631879827,-500.0,0.00020273,2]
[337367128,1725631879836,-500.0,0.00020273,2]
[337367129,1725631879846,-9306.23,0.00020273,2]
[337367130,1725631879855,-348.33574406,0.00020273,2]
[337367131,1725631879865,-1523.95,0.00020273,2]
[337367132,1725631879875,-500.0,0.00020273,2]
[337367133,1725631879885,-1087.16,0.00020273,2]
[337367134,1725631879894,-500.0,0.00020273,2]
[337367135,1725631879904,-541.23,0.00020273,2]
[337367136,1725631879914,-3472.66,0.00020273,2]
[337367137,1725631879926,-500.0,0.00020273,2]
[337367138,1725631879937,-500.0,0.00020273,2]
[337367139,1725631879946,-500.0,0.00020273,2]
[337367140,1725631879956,-500.0,0.00020273,2]
[337367141,1725631879967,-500.0,0.00020273,2]
[337367142,1725631879976,-1236.52,0.00020273,2]
[337367143,1725631879985,-1611.2,0.00020273,2]
[337367144,1725631879995,-500.0,0.00020273,2]
[337367145,1725631880004,-500.0,0.00020273,2]
[337367146,1725631880014,-2055.17,0.00020273,2]
[337367147,1725631880024,-500.0,0.00020273,2]
[337367148,1725631880034,-1839.42,0.00020273,2]
[337367149,1725631880045,-500.0,0.00020273,2]
[337367150,1725631880057,-500.0,0.00020273,2]
[337367151,1725631880067,-500.0,0.00020273,2]
[337367152,1725631880077,-500.0,0.00020273,2]
[337367153,1725631880088,-500.0,0.00020273,2]
[337367154,1725631880098,-592.90066002,0.00020273,2]
[337367155,1725631880107,-622.12,0.00020273,2]
[337367156,1725631880117,-2171.42,0.00020273,2]
[337367157,1725631880126,-745.9,0.00020273,2]
[337367158,1725631880135,-500.0,0.00020273,2]
[337367159,1725631880145,-1274.22,0.00020273,2]
[337367160,1725631880154,-500.0,0.00020273,2]
[337367161,1725631880164,-611.22,0.00020273,2]
[337367162,1725631880174,-1057.51,0.00020273,2]
[337367163,1725631880183,-845.53,0.00020273,2]
[337367164,1725631880193,-500.0,0.00020273,2]
[337367165,1725631880203,-500.0,0.00020273,2]
[337367166,1725631880213,-3522.6,0.00020273,2]
[337367167,1725631880222,-530.81,0.00020273,2]
[337367168,1725631880232,-500.0,0.00020273,2]
[337367169,1725631880243,-500.0,0.00020273,2]
[337367170,1725631880255,-3286.15,0.00020273,2]
[337367171,1725631880265,-2863.53,0.00020273,2]
[337367172,1725631880275,-500.0,0.00020273,2]
[337367173,1725631880284,-651.92,0.00020273,2]
[337367174,1725631880294,-2848.96,0.00020273,2]
[337367175,1725631880306,-500.0,0.00020273,2]
[337367176,1725631880318,-2433.94,0.00020273,2]
[337367177,1725631880328,-500.0,0.00020273,2]
[337367178,1725631880337,-2928.81,0.00020273,2]
[337367179,1725631880346,-500.0,0.00020273,2]
[337367180,1725631880357,-654.7,0.00020273,2]
[337367181,1725631880368,-2387.03,0.00020273,2]
[337367182,1725631880378,-500.0,0.00020273,2]
[337367183,1725631880387,-1660.58,0.00020273,2]
[337367184,1725631880397,-500.0,0.00020273,2]
[337367185,1725631880406,-3345.77,0.00020273,2]
[337367186,1725631880417,-500.0,0.00020273,2]
[337367187,1725631880426,-500.0,0.00020273,2]
[337367188,1725631880436,-3264.33,0.00020273,2]
[337367189,1725631880446,-500.0,0.00020273,2]
[337367190,1725631880455,-500.0,0.00020273,2]
[337367191,1725631880466,-500.0,0.00020273,2]
[337367192,1725631880476,-1608.24,0.00020273,2]
[337367193,1725631880486,-1081.18,0.00020273,2]
[337367194,1725631880496,-500.0,0.00020273,2]
[337367195,1725631880506,-587.81,0.00020273,2]
[337367196,1725631880517,-1370.51,0.00020273,2]
[337367197,1725631880530,-656.69,0.00020273,2]
[337367198,1725631880539,-500.0,0.00020273,2]
[337367199,1725631880549,-1055.34,0.00020273,2]
[337367200,1725631880564,-500.0,0.00020273,2]
[337367201,1725631880575,-1952.4,0.00020273,2]
[337367202,1725631880586,-3518.29,0.00020273,2]
[337367203,1725631880595,-500.0,0.00020273,2]
[337367204,1725631880605,-2418.27,0.00020273,2]
[337367205,1725631880615,-500.0,0.00020273,2]
[337367206,1725631880625,-6016.44,0.00020273,2]
[337367207,1725631880635,-500.0,0.00020273,2]
[337367208,1725631880645,-284.79303768,0.00020273,2]
[337367209,1725631880656,-500.0,0.00020273,2]
[337367210,1725631880666,-1000.0,0.00020273,2]
[337367211,1725631880676,-500.0,0.00020273,2]
[337367212,1725631880686,-500.0,0.00020273,2]
[337367213,1725631880697,-837.34,0.00020273,2]
[337367214,1725631880706,-500.0,0.00020273,2]
[337367215,1725631880716,-862.38,0.00020273,2]
[337367216,1725631880727,-500.0,0.00020273,2]
[337367217,1725631880737,-1887.14,0.00020273,2]
[337367218,1725631880747,-500.0,0.00020273,2]
[337367219,1725631880758,-2273.13,0.00020273,2]
[337367220,1725631880767,-1963.85,0.00020273,2]
[337367221,1725631880777,-500.0,0.00020273,2]
[337367222,1725631880786,-3757.23,0.00020273,2]
[337367223,1725631880795,-500.0,0.00020273,2]
[337367224,1725631880805,-500.0,0.00020273,2]
[337367225,1725631880825,-500.0,0.00020273,2]
[337367226,1725631880834,-500.0,0.00020273,2]
[337367227,1725631880843,-500.0,0.00020273,2]
[337367228,1725631880852,-500.0,0.00020273,2]
[337367229,1725631880863,-500.0,0.00020273,2]
[337367230,1725631880873,-1009.77,0.00020273,2]
[337367231,1725631880882,-1475.95,0.00020273,2]
[337367232,1725631880891,-669.11,0.00020273,2]
[337367233,1725631880901,-500.0,0.00020273,2]
[337367234,1725631881066,-3550.63,0.00020273,2]
[337367235,1725631881076,-1203.77,0.00020273,2]
[337367236,1725631881086,-500.0,0.00020273,2]
[337367237,1725631881096,-1123.46,0.00020273,2]
[337367238,1725631881105,-1848.36,0.00020273,2]
[337367239,1725631881116,-3384.88,0.00020273,2]
[337367240,1725631881126,-500.0,0.00020273,2]
[337367241,1725631881137,-710.64,0.00020273,2]
[337367242,1725631881147,-1535.68,0.00020273,2]
[337367243,1725631881157,-1036.44,0.00020273,2]
[337367244,1725631881167,-603.27,0.00020273,2]
[337367245,1725631881177,-500.0,0.00020273,2]
[337367246,1725631881186,-500.0,0.00020273,2]
[337367247,1725631881196,-3839.93,0.00020273,2]
[337367248,1725631881205,-500.0,0.00020273,2]
[337367249,1725631881215,-3368.52,0.00020273,2]
[337367250,1725631881225,-500.0,0.00020273,2]
[337367251,1725631881235,-547.17,0.00020273,2]
[337367252,1725631881245,-1934.78,0.00020273,2]
[337367253,1725631881255,-500.0,0.00020273,2]
[337367254,1725631881264,-500.0,0.00020273,2]
[337367255,1725631881275,-500.0,0.00020273,2]
[337367256,1725631881285,-1894.75,0.00020273,2]
[337367257,1725631881295,-500.0,0.00020273,2]
[337367258,1725631881309,-912.1,0.00020273,2]
[337367259,1725631881318,-500.0,0.00020273,2]
[337367260,1725631881328,-716.25,0.00020273,2]
[337367261,1725631881338,-500.0,0.00020273,2]
[337367262,1725631881347,-500.0,0.00020273,2]
[337367263,1725631881356,-3216.8,0.00020273,2]
[337367264,1725631881367,-500.0,0.00020273,2]
[337367265,1725631881377,-1236.59,0.00020273,2]
[337367266,1725631881386,-1447.97,0.00020273,2]
[337367267,1725631881396,-3894.99,0.00020273,2]
[337367268,1725631881406,-833.5,0.00020273,2]
[337367269,1725631881416,-500.0,0.00020273,2]
[337367270,1725631881426,-500.0,0.00020273,2]
[337367271,1725631881435,-1879.17,0.00020273,2]
[337367272,1725631881445,-1187.25,0.00020273,2]
[337367273,1725631881455,-500.0,0.00020273,2]
[337367274,1725631881465,-510.23,0.00020273,2]
[337367275,1725631881475,-725.44,0.00020273,2]
[337367276,1725631881485,-2343.94,0.00020273,2]
[337367277,1725631881494,-817.13,0.00020273,2]
[337367278,1725631881504,-2268.84,0.00020273,2]
[337367279,1725631881513,-28688.70132318,0.00020377,2]
[337367280,1725631881524,-250.0,0.00020521,2]
[337367281,1725631881534,-975.88,0.00020547,2]
[337367282,1725631881544,-481.31007146,0.00020547,2]
[337367283,1725631881558,-502.29,0.00020547,2]
[337367284,1725631881567,-500.0,0.00020547,2]
[337367285,1725631881578,-500.0,0.00020547,2]
[337367286,1725631881587,-500.0,0.00020547,2]
[337367287,1725631881596,-500.0,0.00020547,2]
[337367288,1725631881607,-500.0,0.00020547,2]
[337367289,1725631881618,-500.0,0.00020547,2]
[337367290,1725631881627,-500.0,0.00020547,2]
[337367291,1725631881637,-500.0,0.00020547,2]
[337367292,1725631881646,-500.0,0.00020547,2]
[337367293,1725631881655,-500.0,0.00020547,2]
[337367294,1725631881664,-500.0,0.00020547,2]
[337367295,1725631881675,-500.0,0.00020547,2]
[337367296,1725631881685,-377.82299631,0.00020547,2]
[337367297,1725631881696,-532.12,0.00020547,2]
[337367298,1725631881708,-501.56,0.00020547,2]
[337367299,1725631881718,-500.0,0.00020547,2]